fUST/lending_fUST_20240921
["ID","MTS","AMOUNT","RATE_DAILY","PERIOD"]
[338816865,1726925464949,-648.02,0.00015432,2]
[338816866,1726925464959,-500.0,0.00015432,2]
[338816867,1726925464968,-500.0,0.00015432,2]
[338816868,1726925464978,-500.0,0.00015432,2]
[338816869,1726925464988,-345.15712558,0.00015432,2]
[338816870,1726925464997,-500.0,0.00015432,2]
[338816871,1726925465008,-500.0,0.00015432,2]
[338816872,1726925465017,-500.0,0.00015432,2]
[338816873,1726925465026,-739.22,0.00015432,2]
[338816874,1726925465037,-500.0,0.00015432,2]
[338816875,1726925465046,-500.0,0.00015442,2]
[338816876,1726925465055,-500.0,0.00015442,2]
[338816877,1726925465066,-782.22,0.00015442,2]
[338816878,1726925465076,-500.0,0.00015442,2]
[338816879,1726925465086,-500.0,0.00015442,2]
[338816880,1726925465096,-234.75657893,0.00015442,2]
[338816881,1726925465105,-500.0,0.00015442,2]
[338816882,1726925465115,-500.0,0.00015442,2]
[338816883,1726925465124,-500.0,0.00015442,2]
[338816884,1726925465136,-500.0,0.00015442,2]
[338816885,1726925465146,-500.0,0.00015442,2]
[338816886,1726925465157,-500.0,0.00015442,2]
[338816887,1726925465167,-500.0,0.00015442,2]
[338816888,1726925465304,-500.0,0.00015442,2]
[338816889,1726925465313,-500.0,0.00015442,2]
[338816890,1726925465323,-500.0,0.00015442,2]
[338816891,1726925465335,-500.0,0.00015442,2]
[338816892,1726925465345,-500.0,0.00015442,2]
[338816893,1726925465355,-500.0,0.00015442,2]
[338816894,1726925465364,-500.0,0.00015442,2]
[338816895,1726925465374,-521.4,0.00015442,2]
[338816896,1726925465383,-500.0,0.00015442,2]
[338816897,1726925465393,-173.75331766,0.00015442,2]
[338816898,1726925465402,-500.0,0.00015442,2]
[338816899,1726925465413,-500.0,0.00015442,2]
[338816900,1726925465423,-500.0,0.00015442,2]
[338816901,1726925465432,-207.55455039,0.00015442,2]
[338816902,1726925465442,-500.0,0.00015442,2]
[338816903,1726925465451,-986.69,0.00015442,2]
[338816904,1726925465460,-500.0,0.00015442,2]
[338816905,1726925465470,-547.94,0.00015442,2]
[338816906,1726925465480,-500.0,0.00015442,2]
[338816907,1726925465489,-500.0,0.00015442,2]
[338816908,1726925465498,-500.0,0.00015442,2]
[338816909,1726925465509,-655.17,0.00015442,2]
[338816910,1726925465519,-500.0,0.00015442,2]
[338816911,1726925465529,-500.0,0.00015442,2]
[338816912,1726925465539,-689.45,0.00015442,2]
[338816913,1726925465549,-500.0,0.00015442,2]
[338816914,1726925465559,-500.0,0.00015442,2]
[338816915,1726925465569,-500.0,0.00015442,2]
[338816916,1726925465578,-537.53,0.00015442,2]
[338816917,1726925465588,-500.0,0.00015442,2]
[338816918,1726925465597,-721.71,0.00015442,2]
[338816919,1726925465607,-500.0,0.00015442,2]
[338816920,1726925465616,-514.06724973,0.00015442,2]
[338816921,1726925465630,-500.0,0.00015442,2]
[338816922,1726925465639,-500.0,0.00015442,2]
[338816923,1726925465648,-500.0,0.00015442,2]
[338816924,1726925465659,-318.22229223,0.00015442,2]
[338816925,1726925465669,-500.0,0.00015442,2]
[338816926,1726925465679,-500.0,0.00015442,2]
[338816927,1726925465688,-500.0,0.00015442,2]
[338816928,1726925465699,-500.0,0.00015442,2]
[338816929,1726925465708,-789.76,0.00015442,2]
[338816930,1726925465718,-500.0,0.00015442,2]
[338816931,1726925465727,-500.0,0.00015442,2]
[338816932,1726925465736,-500.0,0.00015442,2]
[338816933,1726925465745,-500.0,0.00015442,2]
[338816934,1726925465762,-576.82763715,0.00015442,2]
[338816935,1726925465776,-500.0,0.00015442,2]
[338816936,1726925465786,-500.0,0.00015442,2]
[338816937,1726925465796,-1281.6,0.00015442,2]
[338816938,1726925465806,-500.0,0.00015442,2]
[338816939,1726925465816,-500.0,0.00015442,2]
[338816940,1726925465826,-500.0,0.00015442,2]
[338816941,1726925465836,-500.0,0.00015442,2]
[338816942,1726925465848,-501.85434409,0.00015442,2]
[338816943,1726925465858,-500.0,0.00015443,2]
[338816944,1726925465867,-645.22,0.00015443,2]
[338816945,1726925465877,-500.0,0.00015443,2]
[338816946,1726925465887,-500.0,0.00015443,2]
[338816947,1726925465896,-500.0,0.00015458,2]
[338816948,1726925465906,-508.86491657,0.00015458,2]
[338816949,1726925465917,-420.93329546,0.00015458,2]
[338816950,1726925465928,-487.826424,0.00015599,2]
[338816951,1726925465939,-975.652849,0.00015599,2]
[338816952,1726925465950,-487.826424,0.00015599,2]
[338816953,1726925465961,-151.6392528,0.00015626,2]
[338816954,1726925465971,-184.608408,0.00015663,2]
[338816955,1726925465981,-500.0,0.00015704,2]
[338816956,1726925465991,-500.0,0.00015704,2]
[338816957,1726925466001,-500.0,0.00015704,2]
[338816958,1726925466011,-15384.34,0.00015704,2]
[338816959,1726925466021,-2184.8,0.00015704,2]
[338816960,1726925466031,-500.0,0.00015705,2]
[338816961,1726925466041,-500.0,0.00015705,2]
[338816962,1726925466050,-500.0,0.00015706,2]
[338816963,1726925466060,-500.0,0.00015706,2]
[338816964,1726925466069,-500.0,0.00015706,2]
[338816965,1726925466078,-500.0,0.00015706,2]
[338816966,1726925466088,-686.74,0.00015706,2]
[338816967,1726925466099,-500.0,0.00015706,2]
[338816968,1726925466109,-519.19,0.00015706,2]
[338816969,1726925466120,-500.0,0.00015706,2]
[338816970,1726925466130,-500.0,0.00015706,2]
[338816971,1726925466140,-500.0,0.00015706,2]
[338816972,1726925466149,-500.0,0.00015706,2]
[338816973,1726925466159,-500.0,0.00015706,2]
[338816974,1726925466169,-500.0,0.00015706,2]
[338816975,1726925466178,-500.0,0.00015706,2]
[338816976,1726925466188,-500.0,0.00015706,2]
[338816977,1726925466198,-1331.46,0.00015706,2]
[338816978,1726925466208,-631.7,0.00015706,2]
[338816979,1726925466217,-500.0,0.00015706,2]
[338816980,1726925466227,-237.21,0.00015706,2]
[338816981,1726925466237,-333.44,0.00015706,2]
[338816982,1726925466246,-500.0,0.00015706,2]
[338816983,1726925466256,-500.0,0.00015706,2]
[338816984,1726925466266,-500.0,0.00015706,2]
[338816985,1726925466276,-500.0,0.00015706,2]
[338816986,1726925466285,-500.0,0.00015706,2]
[338816987,1726925466296,-500.0,0.00015706,2]
[338816988,1726925466306,-500.0,0.00015706,2]
[338816989,1726925466315,-500.0,0.00015706,2]
[338816990,1726925466325,-739.22,0.00015706,2]
[338816991,1726925466335,-500.0,0.00015706,2]
[338816992,1726925466344,-300.0,0.00015708,2]
[338816993,1726925466354,-150.0,0.00015708,2]
[338816994,1726925466364,-500.0,0.00015716,2]
[338816995,1726925466377,-500.0,0.00015716,2]
[338816996,1726925466387,-782.22,0.00015716,2]
[338816997,1726925466397,-418.76433122,0.00015716,2]
[338816998,1726925466407,-500.0,0.00015716,2]
[338816999,1726925466416,-500.0,0.00015716,2]
[338817000,1726925466426,-623.58,0.00015716,2]
[338817001,1726925466437,-500.0,0.00015716,2]
[338817002,1726925466447,-500.0,0.00015716,2]
[338817003,1726925466457,-500.0,0.00015716,2]
[338817004,1726925466467,-222.54978767,0.00015716,2]
[338817005,1726925466477,-151.0,0.00015716,2]
[338817006,1726925466487,-500.0,0.00015716,2]
[338817007,1726925466497,-1431.139768,0.00015716,2]
[338817008,1726925466507,-500.0,0.00015716,2]
[338817009,1726925466517,-1431.139768,0.00015716,2]
[338817010,1726925466527,-500.0,0.00015716,2]
[338817011,1726925466536,-500.0,0.00015716,2]
[338817012,1726925466547,-398.85,0.00015716,2]
[338817013,1726925466557,-500.0,0.00015716,2]
[338817014,1726925466566,-500.0,0.00015716,2]
[338817015,1726925466576,-556.44,0.00015716,2]
[338817016,1726925466585,-500.0,0.00015716,2]
[338817017,1726925466596,-500.0,0.00015716,2]
[338817018,1726925466607,-500.0,0.00015716,2]
[338817019,1726925466618,-645.65,0.00015716,2]
[338817020,1726925466631,-614.11,0.00015716,2]
[338817021,1726925466642,-986.69,0.00015716,2]
[338817022,1726925466652,-500.0,0.00015716,2]
[338817023,1726925466664,-547.94,0.00015716,2]
[338817024,1726925466675,-500.0,0.00015716,2]
[338817025,1726925466686,-532.09,0.00015716,2]
[338817026,1726925466697,-500.0,0.00015716,2]
[338817027,1726925466708,-655.17,0.00015716,2]
[338817028,1726925466721,-500.0,0.00015716,2]
[338817029,1726925466730,-689.45,0.00015716,2]
[338817030,1726925466741,-642.68,0.00015716,2]
[338817031,1726925466751,-500.0,0.00015716,2]
[338817032,1726925466762,-500.0,0.00015716,2]
[338817033,1726925466773,-537.53,0.00015716,2]
[338817034,1726925466783,-500.0,0.00015716,2]
[338817035,1726925466794,-721.71,0.00015716,2]
[338817036,1726925466804,-500.0,0.00015716,2]
[338817037,1726925466818,-500.0,0.00015716,2]
[338817038,1726925466830,-500.0,0.00015716,2]
[338817039,1726925466840,-500.0,0.00015716,2]
[338817040,1726925466853,-500.0,0.00015716,2]
[338817041,1726925466864,-500.0,0.00015716,2]
[338817042,1726925466874,-500.0,0.00015716,2]
[338817043,1726925466885,-789.76,0.00015716,2]
[338817044,1726925466896,-500.0,0.00015716,2]
[338817045,1726925466906,-548.48,0.00015716,2]
[338817046,1726925466917,-500.0,0.00015716,2]
[338817047,1726925466927,-500.0,0.00015716,2]
[338817048,1726925466939,-500.0,0.00015716,2]
[338817049,1726925466950,-1281.6,0.00015716,2]
[338817050,1726925466960,-500.0,0.00015716,2]
[338817051,1726925466971,-500.0,0.00015716,2]
[338817052,1726925466983,-500.0,0.00015716,2]
[338817053,1726925466994,-500.0,0.00015716,2]
[338817054,1726925467006,-645.22,0.00015717,2]
[338817055,1726925467018,-500.0,0.00015717,2]
[338817056,1726925467029,-500.0,0.00015717,2]
[338817057,1726925467039,-500.0,0.00015732,2]
[338817058,1726925467051,-188.20230846,0.00015742,2]
[338817059,1726925467061,-1000.0,0.00015742,2]
[338817060,1726925467071,-500.0,0.00015742,2]
[338817061,1726925467081,-1000.0,0.00015742,2]
[338817062,1726925467091,-324.79395415,0.00015742,2]
[338817063,1726925467100,-500.52186912,0.00015742,2]
[338817064,1726925467110,-500.72022234,0.00015742,2]
[338817065,1726925467119,-1000.0,0.00015742,2]
[338817066,1726925467129,-457.18881991,0.00015742,2]
[338817067,1726925467139,-1000.0,0.00015742,2]
[338817068,1726925467150,-803.89639885,0.00015742,2]
[338817069,1726925467160,-609.59335374,0.00015742,2]
[338817070,1726925467170,-696.42918529,0.00015742,2]
[338817071,1726925467179,-1000.0,0.00015742,2]
[338817072,1726925467189,-500.32795844,0.00015742,2]
[338817073,1726925467199,-1000.0,0.00015742,2]
[338817074,1726925467209,-1000.0,0.00015742,2]
[338817075,1726925467220,-960.43763745,0.00015742,2]
[338817076,1726925467229,-1000.0,0.00015742,2]
[338817077,1726925467239,-184.608407,0.00015791,2]
[338817078,1726925467249,-487.826424,0.00015791,2]
[338817079,1726925467258,-975.652849,0.00015791,2]
[338817080,1726925467267,-487.826424,0.00015791,2]
[338817081,1726925467277,-184.608407,0.00015791,2]
[338817082,1726925467286,-737.7542531,0.00015847,2]
[338817083,1726925467295,-184.608408,0.0001592,2]
[338817084,1726925467305,-500.0,0.00015978,2]
[338817085,1726925467315,-500.0,0.00015978,2]
[338817086,1726925467327,-500.0,0.00015978,2]
[338817087,1726925467337,-15384.34,0.00015978,2]
[338817088,1726925467347,-2184.8,0.00015978,2]
[338817089,1726925467357,-451.37244044,0.00015979,2]
[338817090,1726925467367,-500.0,0.00015979,2]
[338817091,1726925467376,-380.75807373,0.0001598,2]
[338817092,1726925467386,-500.0,0.0001598,2]
[338817093,1726925467395,-686.74,0.0001598,2]
[338817094,1726925467405,-500.0,0.0001598,2]
[338817095,1726925467415,-500.0,0.0001598,2]
[338817096,1726925467425,-573.634542,0.0001598,2]
[338817097,1726925467434,-151.0,0.0001598,2]
[338817098,1726925467443,-573.634542,0.0001598,2]
[338817099,1726925467453,-500.0,0.0001598,2]
[338817100,1726925467462,-500.0,0.0001598,2]
[338817101,1726925467471,-151.0,0.0001598,2]
[338817102,1726925467480,-627.07756,0.0001598,2]
[338817103,1726925467490,-627.07756,0.0001598,2]
[338817104,1726925467500,-500.0,0.0001598,2]
[338817105,1726925467510,-500.0,0.0001598,2]
[338817106,1726925467520,-500.0,0.0001598,2]
[338817107,1726925467530,-500.0,0.0001598,2]
[338817108,1726925467541,-185.064847,0.0001598,2]
[338817109,1726925467552,-185.064847,0.0001598,2]
[338817110,1726925467562,-500.0,0.0001598,2]
[338817111,1726925467571,-500.0,0.0001598,2]
[338817112,1726925467581,-1148.609112,0.0001598,2]
[338817113,1726925467590,-1148.609112,0.0001598,2]
[338817114,1726925467600,-1331.46,0.0001598,2]
[338817115,1726925467610,-631.7,0.0001598,2]
[338817116,1726925467619,-375.08,0.0001598,2]
[338817117,1726925467631,-500.0,0.0001598,2]
[338817118,1726925467642,-500.0,0.0001598,2]
[338817119,1726925467652,-500.0,0.0001598,2]
[338817120,1726925467663,-500.0,0.0001598,2]
[338817121,1726925467674,-500.0,0.0001598,2]
[338817122,1726925467684,-151.0,0.0001598,2]
[338817123,1726925467694,-151.0,0.0001598,2]
[338817124,1726925467713,-381.26,0.0001598,2]
[338817125,1726925467725,-500.0,0.0001598,2]
[338817126,1726925467735,-500.0,0.0001598,2]
[338817127,1726925467746,-151.0,0.0001598,2]
[338817128,1726925467756,-739.22,0.0001598,2]
[338817129,1726925467765,-151.0,0.0001598,2]
[338817130,1726925467775,-500.0,0.0001598,2]
[338817131,1726925467785,-590.516651,0.0001598,2]
[338817132,1726925467796,-487.826424,0.00015984,2]
[338817133,1726925467807,-975.652849,0.00015984,2]
[338817134,1726925467817,-487.826424,0.00015984,2]
[338817135,1726925467826,-500.0,0.0001599,2]
[338817136,1726925467836,-500.0,0.0001599,2]
[338817137,1726925467847,-782.22,0.0001599,2]
[338817138,1726925467858,-500.0,0.0001599,2]
[338817139,1726925467868,-321.60184512,0.0001599,2]
[338817140,1726925467878,-500.0,0.0001599,2]
[338817141,1726925467888,-477.68,0.0001599,2]
[338817142,1726925467899,-500.0,0.0001599,2]
[338817143,1726925467908,-500.0,0.0001599,2]
[338817144,1726925467918,-500.0,0.0001599,2]
[338817145,1726925467928,-159.79670019,0.0001599,2]
[338817146,1726925467937,-161.49,0.0001599,2]
[338817147,1726925467949,-169.20417275,0.0001599,2]
[338817148,1726925467959,-500.0,0.0001599,2]
[338817149,1726925467970,-500.0,0.0001599,2]
[338817150,1726925467981,-500.0,0.0001599,2]
[338817151,1726925467991,-500.0,0.0001599,2]
[338817152,1726925468002,-986.69,0.0001599,2]
[338817153,1726925468012,-500.0,0.0001599,2]
[338817154,1726925468021,-547.94,0.0001599,2]
[338817155,1726925468033,-500.0,0.0001599,2]
[338817156,1726925468046,-500.0,0.0001599,2]
[338817157,1726925468056,-655.17,0.0001599,2]
[338817158,1726925468066,-500.0,0.0001599,2]
[338817159,1726925468076,-689.45,0.0001599,2]
[338817160,1726925468086,-500.0,0.0001599,2]
[338817161,1726925468096,-537.53,0.0001599,2]
[338817162,1726925468107,-500.0,0.0001599,2]
[338817163,1726925468118,-721.71,0.0001599,2]
[338817164,1726925468127,-169.32233652,0.0001599,2]
[338817165,1726925468139,-151.0,0.0001599,2]
[338817166,1726925468150,-500.0,0.0001599,2]
[338817167,1726925468160,-500.0,0.0001599,2]
[338817168,1726925468170,-500.0,0.0001599,2]
[338817169,1726925468180,-500.0,0.0001599,2]
[338817170,1726925468190,-500.0,0.0001599,2]
[338817171,1726925468200,-500.0,0.0001599,2]
[338817172,1726925468210,-364.588233,0.0001599,2]
[338817173,1726925468219,-151.0,0.0001599,2]
[338817174,1726925468229,-364.588233,0.0001599,2]
[338817175,1726925468238,-151.0,0.0001599,2]
[338817176,1726925468248,-789.76,0.0001599,2]
[338817177,1726925468257,-285.95029188,0.0001599,2]
[338817178,1726925468267,-196.14145,0.0001599,2]
[338817179,1726925468276,-505.18049513,0.0001599,2]
[338817180,1726925468286,-500.0,0.0001599,2]
[338817181,1726925468296,-196.14145,0.0001599,2]
[338817182,1726925468305,-500.0,0.0001599,2]
[338817183,1726925468315,-1281.6,0.0001599,2]
[338817184,1726925468324,-500.0,0.0001599,2]
[338817185,1726925468334,-500.0,0.0001599,2]
[338817186,1726925468343,-500.0,0.0001599,2]
[338817187,1726925468352,-1503.646735,0.0001599,2]
[338817188,1726925468362,-1503.646735,0.0001599,2]
[338817189,1726925468371,-645.22,0.00015991,2]
[338817190,1726925468381,-500.0,0.00015991,2]
[338817191,1726925468390,-500.0,0.00015991,2]
[338817192,1726925468399,-3000.0,0.00016,2]
[338817193,1726925468410,-500.0,0.00016006,2]
[338817194,1726925468419,-2038.312526,0.00016006,2]
[338817195,1726925468601,-2038.312526,0.00016006,2]
[338817196,1726925468612,-151.0,0.00016006,2]
[338817197,1726925468625,-151.0,0.00016006,2]
[338817198,1726925468637,-151.0,0.00016006,2]
[338817199,1726925468646,-151.786013,0.00016006,2]
[338817200,1726925468656,-3632.549123,0.00016006,2]
[338817201,1726925468666,-740.186254,0.00016006,2]
[338817202,1726925468677,-151.0,0.00016006,2]
[338817203,1726925468686,-740.186254,0.00016006,2]
[338817204,1726925468696,-391.594945,0.00016006,2]
[338817205,1726925468706,-391.594945,0.00016006,2]
[338817206,1726925468716,-1106.068843,0.00016006,2]
[338817207,1726925468725,-1106.068843,0.00016006,2]
[338817208,1726925468735,-157.050162,0.00016006,2]
[338817209,1726925468744,-157.050162,0.00016006,2]
[338817210,1726925468754,-228.217079,0.00016006,2]
[338817211,1726925468764,-228.217079,0.00016006,2]
[338817212,1726925468773,-1302.07657,0.00016006,2]
[338817213,1726925468784,-1302.07657,0.00016006,2]
[338817214,1726925468794,-840.683625,0.00016006,2]
[338817215,1726925468803,-840.683625,0.00016006,2]
[338817216,1726925468812,-722.457,0.0001601,2]
[338817217,1726925468823,-3000.0,0.0001601,2]
[338817218,1726925468832,-3000.0,0.0001602,2]
[338817219,1726925468842,-151.0,0.0001603,2]
[338817220,1726925468851,-151.0,0.0001603,2]
[338817221,1726925468860,-3000.0,0.0001603,2]
[338817222,1726925468870,-3000.0,0.0001604,2]
[338817223,1726925468879,-151.0,0.00016042,2]
[338817224,1726925468888,-151.0,0.00016042,2]
[338817225,1726925468897,-233.040417,0.00016042,2]
[338817226,1726925468906,-3000.0,0.0001605,2]
[338817227,1726925468917,-151.0,0.0001605,2]
[338817228,1726925468927,-151.0,0.0001605,2]
[338817229,1726925468937,-550.676394,0.0001605,2]
[338817230,1726925468946,-550.676394,0.0001605,2]
[338817231,1726925468956,-3000.0,0.0001606,2]
[338817232,1726925468966,-3000.0,0.0001607,2]
[338817233,1726925468975,-3000.0,0.0001608,2]
[338817234,1726925468985,-3000.0,0.0001609,2]
[338817235,1726925468996,-3000.0,0.000161,2]
[338817236,1726925469006,-3000.0,0.0001611,2]
[338817237,1726925469016,-3000.0,0.0001612,2]
[338817238,1726925469025,-3000.0,0.0001613,2]
[338817239,1726925469035,-3000.0,0.0001614,2]
[338817240,1726925469044,-151.0,0.0001614,2]
[338817241,1726925469053,-422.120102,0.0001614,2]
[338817242,1726925469062,-422.120102,0.0001614,2]
[338817243,1726925469072,-927.96169,0.0001615,2]
[338817244,1726925469082,-3000.0,0.0001615,2]
[338817245,1726925469092,-3000.0,0.0001616,2]
[338817246,1726925469103,-3000.0,0.0001617,2]
[338817247,1726925469112,-184.608408,0.00016177,2]
[338817248,1726925469122,-184.608407,0.00016177,2]
[338817249,1726925469131,-487.826424,0.00016177,2]
[338817250,1726925469141,-975.652849,0.00016177,2]
[338817251,1726925469151,-487.826424,0.00016177,2]
[338817252,1726925469161,-184.608407,0.00016177,2]
[338817253,1726925469170,-203.261011,0.00016177,2]
[338817254,1726925469179,-3000.0,0.0001618,2]
[338817255,1726925469189,-3000.0,0.0001619,2]
[338817256,1726925469198,-205.0,0.0001619,2]
[338817257,1726925469208,-153.0,0.00016195,2]
[338817258,1726925469218,-153.0,0.00016195,2]
[338817259,1726925469228,-306.0,0.00016195,2]
[338817260,1726925469237,-153.0,0.00016195,2]
[338817261,1726925469246,-153.0,0.00016195,2]
[338817262,1726925469256,-153.0,0.00016195,2]
[338817263,1726925469266,-306.0,0.00016195,2]
[338817264,1726925469275,-153.0,0.00016195,2]
[338817265,1726925469285,-153.0,0.00016195,2]
[338817266,1726925469295,-153.0,0.00016195,2]
[338817267,1726925469304,-153.0,0.00016195,2]
[338817268,1726925469314,-153.0,0.00016195,2]
[338817269,1726925469324,-153.0,0.00016195,2]
[338817270,1726925469333,-3000.0,0.000162,2]
[338817271,1726925469342,-3000.0,0.0001621,2]
[338817272,1726925469351,-3000.0,0.0001622,2]
[338817273,1726925469361,-3000.0,0.0001623,2]
[338817274,1726925469370,-3000.0,0.0001624,2]
[338817275,1726925469380,-3000.0,0.0001625,2]
[338817276,1726925469389,-500.0,0.00016252,2]
[338817277,1726925469399,-500.0,0.00016252,2]
[338817278,1726925469409,-216.61527665,0.00016252,2]
[338817279,1726925469420,-15384.34,0.00016252,2]
[338817280,1726925469429,-2184.8,0.00016252,2]
[338817281,1726925469438,-500.0,0.00016253,2]
[338817282,1726925469448,-500.0,0.00016254,2]
[338817283,1726925469457,-686.74,0.00016254,2]
[338817284,1726925469467,-506.86662193,0.00016254,2]
[338817285,1726925469476,-500.0,0.00016254,2]
[338817286,1726925469486,-500.0,0.00016254,2]
[338817287,1726925469495,-500.0,0.00016254,2]
[338817288,1726925469505,-500.0,0.00016254,2]
[338817289,1726925469516,-193.018,0.00016254,2]
[338817290,1726925469526,-500.0,0.00016254,2]
[338817291,1726925469535,-500.0,0.00016254,2]
[338817292,1726925469544,-500.0,0.00016254,2]
[338817293,1726925469554,-435.705089,0.00016254,2]
[338817294,1726925469564,-435.705089,0.00016254,2]
[338817295,1726925469573,-247.069416,0.00016254,2]
[338817296,1726925469582,-247.069416,0.00016254,2]
[338817297,1726925469592,-156.054187,0.00016254,2]
[338817298,1726925469602,-169.913496,0.00016254,2]
[338817299,1726925469612,-156.054187,0.00016254,2]
[338817300,1726925469624,-169.913496,0.00016254,2]
[338817301,1726925469636,-151.0,0.00016254,2]
[338817302,1726925469648,-200.359169,0.00016254,2]
[338817303,1726925469659,-500.0,0.00016254,2]
[338817304,1726925469669,-346.34262105,0.00016254,2]
[338817305,1726925469679,-1331.46,0.00016254,2]
[338817306,1726925469691,-631.7,0.00016254,2]
[338817307,1726925469703,-500.0,0.00016254,2]
[338817308,1726925469712,-500.0,0.00016254,2]
[338817309,1726925469722,-500.0,0.00016254,2]
[338817310,1726925469732,-500.0,0.00016254,2]
[338817311,1726925469742,-292.86319176,0.00016254,2]
[338817312,1726925469751,-500.0,0.00016254,2]
[338817313,1726925469761,-500.0,0.00016254,2]
[338817314,1726925469770,-739.22,0.00016254,2]
[338817315,1726925469779,-500.0,0.00016254,2]
[338817316,1726925469789,-3000.0,0.0001626,2]
[338817317,1726925469799,-500.0,0.00016264,2]
[338817318,1726925469809,-500.0,0.00016264,2]
[338817319,1726925469819,-782.22,0.00016264,2]
[338817320,1726925469829,-500.0,0.00016264,2]
[338817321,1726925469838,-151.0,0.00016264,2]
[338817322,1726925469848,-301.2735266,0.00016264,2]
[338817323,1726925469857,-151.0,0.00016264,2]
[338817324,1726925469866,-151.0,0.00016264,2]
[338817325,1726925469875,-500.0,0.00016264,2]
[338817326,1726925469885,-500.0,0.00016264,2]
[338817327,1726925469895,-500.0,0.00016264,2]
[338817328,1726925469905,-192.53,0.00016264,2]
[338817329,1726925469915,-500.0,0.00016264,2]
[338817330,1726925469926,-986.69,0.00016264,2]
[338817331,1726925469936,-500.0,0.00016264,2]
[338817332,1726925469946,-547.94,0.00016264,2]
[338817333,1726925469956,-412.28969922,0.00016264,2]
[338817334,1726925469965,-500.0,0.00016264,2]
[338817335,1726925469975,-655.17,0.00016264,2]
[338817336,1726925469984,-500.0,0.00016264,2]
[338817337,1726925469994,-689.45,0.00016264,2]
[338817338,1726925470005,-537.53,0.00016264,2]
[338817339,1726925470017,-500.0,0.00016264,2]
[338817340,1726925470027,-721.71,0.00016264,2]
[338817341,1726925470037,-500.0,0.00016264,2]
[338817342,1726925470047,-500.0,0.00016264,2]
[338817343,1726925470056,-500.0,0.00016264,2]
[338817344,1726925470066,-156.44103273,0.00016264,2]
[338817345,1726925470075,-500.0,0.00016264,2]
[338817346,1726925470086,-789.76,0.00016264,2]
[338817347,1726925470097,-500.0,0.00016264,2]
[338817348,1726925470107,-500.0,0.00016264,2]
[338817349,1726925470117,-1281.6,0.00016264,2]
[338817350,1726925470126,-500.0,0.00016264,2]
[338817351,1726925470136,-426.35407418,0.00016264,2]
[338817352,1726925470145,-151.0,0.00016265,2]
[338817353,1726925470154,-151.0,0.00016265,2]
[338817354,1726925470164,-151.0,0.00016265,2]
[338817355,1726925470174,-151.0,0.00016265,2]
[338817356,1726925470183,-645.22,0.00016265,2]
[338817357,1726925470192,-229.8,0.00016265,2]
[338817358,1726925470201,-500.0,0.00016265,2]
[338817359,1726925470210,-3000.0,0.0001627,2]
[338817360,1726925470220,-500.0,0.0001628,2]
[338817361,1726925470230,-151.0,0.0001628,2]
[338817362,1726925470239,-3000.0,0.0001628,2]
[338817363,1726925470249,-225.629967,0.0001628,2]
[338817364,1726925470258,-225.629967,0.0001628,2]